bitfinex/quotes_SOLUSD_20251202
["timestamp","ask_amount","ask_price","bid_price","bid_amount"]
[1764656180063,0.2,127.09,127.08,45.71672643]
[1764656180265,0.2,127.09,127.08,41.68786778]
[1764656180473,0.2,127.09,127.08,45.71672643]
[1764656182041,0.1,127.11,127.1,25.11880892]
[1764656182249,0.1,127.12,127.11,8.80994492]
[1764656182448,0.1,127.12,127.11,12.83880357]
[1764656183158,0.79,127.12,127.11,12.83880357]
[1764656183761,0.79,127.12,127.11,20.7060052]
[1764656185767,0.79,127.12,127.11,16.67714655]
[1764656186972,0.79,127.12,127.11,20.7060052]
[1764656188345,0.79,127.12,127.11,19.24662047]
[1764656189383,0.1,127.12,127.11,19.24662047]
[1764656189686,0.79,127.12,127.11,19.24662047]
[1764656190673,16.308864,127.19,127.11,19.24662047]
[1764656190674,2.56947392,127.2,127.15,8.80994492]
[1764656190976,2.56947392,127.18,127.15,17.50994492]
[1764656191280,2.56947392,127.17,127.13,17.50994492]
[1764656191450,3.25947392,127.18,127.13,20.07941884]
[1764656191648,2.56947392,127.18,127.13,20.07941884]
[1764656191849,0.69,127.17,127.13,20.07941884]
[1764656192183,3.25947392,127.17,127.13,25.37578173]
[1764656192553,3.25947392,127.16,127.13,17.50994492]
[1764656192781,3.25947392,127.15,127.13,17.50994492]
[1764656193014,0.69,127.15,127.13,17.50994492]
[1764656193189,0.69,127.14,127.13,17.50994492]
[1764656194862,0.69,127.14,127.13,8.80994492]
[1764656197783,0.69,127.14,127.13,7.86596397]
[1764656199170,0.69,127.14,127.12,16.6762815]
[1764656200792,0.69,127.14,127.12,19.24575542]
[1764656200966,0.69,127.14,127.13,25.37590889]
[1764656201168,0.69,127.16,127.14,8.80994492]
[1764656201358,0.69,127.16,127.14,11.37941884]
[1764656201967,0.69,127.16,127.14,8.80994492]
[1764656203165,2.56947392,127.19,127.15,25.37467162]
[1764656203498,2.56947392,127.22,127.18,8.80994492]
[1764656203689,2.56947392,127.21,127.18,17.50994492]
[1764656204078,0.67,127.2,127.18,17.50994492]
[1764656204400,0.67,127.2,127.18,25.37250793]
[1764656211795,0.67,127.2,127.18,17.50994492]
[1764656211991,0.67,127.2,127.18,8.7]
[1764656212295,3.23947392,127.2,127.18,8.7]
[1764656212479,0.67,127.2,127.18,8.7]
[1764656212779,0.67,127.19,127.18,8.7]
[1764656212982,0.67,127.19,127.17,7.86328949]
[1764656215515,0.67,127.2,127.18,8.80994492]
[1764656215798,0.67,127.19,127.18,8.80994492]
[1764656216903,0.67,127.19,127.18,16.67281644]
[1764656225506,0.67,127.21,127.18,16.67281644]
[1764656225701,0.67,127.21,127.19,2.56947392]
[1764656226390,0.67,127.21,127.18,27.92229036]
[1764656228806,0.67,127.21,127.18,25.35281644]
[1764656229003,0.67,127.21,127.18,27.92229036]
[1764656233799,0.67,127.21,127.18,17.48994492]
[1764656233997,3.23947392,127.21,127.18,17.48994492]
[1764656234186,3.23947392,127.21,127.18,25.35280464]
[1764656234385,0.66,127.2,127.18,25.35280464]
[1764656235280,0.66,127.2,127.18,17.48994492]
[1764656236213,0.66,127.2,127.18,25.35271595]
[1764656239214,3.22947392,127.2,127.18,8.68]
[1764656239415,0.66,127.19,127.18,8.68]
[1764656241607,0.66,127.19,127.17,8.80994492]
[1764656243619,0.66,127.19,127.17,16.67298857]
[1764656243918,3.22947392,127.19,127.17,7.86304365]
[1764656244509,0.66,127.18,127.17,7.86304365]
[1764656244824,0.66,127.18,127.16,16.54382044]
[1764656246019,3.22947392,127.18,127.16,8.68]
[1764656246402,0.66,127.17,127.16,8.68]
[1764656253334,19.65041576,127.23,127.17,8.80994492]
[1764656253540,0.66,127.19,127.17,8.80994492]
[1764656255339,0.66,127.19,127.17,16.67338174]
[1764656256235,0.66,127.19,127.17,8.80994492]
[1764656257240,0.66,127.19,127.17,16.67340853]
[1764656267544,4.67355282,127.19,127.17,16.67340853]
[1764656268020,0.69,127.18,127.17,16.67340853]
[1764656268431,0.69,127.2,127.18,8.80994492]
[1764656268629,19.65099827,127.22,127.18,17.46994492]
[1764656268630,0.69,127.21,127.18,17.46994492]
[1764656271537,0.69,127.21,127.19,7.86225332]
[1764656273652,4.71641056,127.21,127.19,7.86225332]
[1764656274948,4.02641056,127.21,127.2,17.46994492]
[1764656275148,4.02641056,127.21,127.2,25.33158014]
[1764656277056,4.02641056,127.21,127.2,29.34513296]
[1764656278550,4.02641056,127.21,127.2,25.33158014]
[1764656278957,4.02641056,127.21,127.2,29.34513296]
[1764656291868,4.02641056,127.21,127.2,25.33158014]
[1764656292171,4.02641056,127.21,127.2,29.34513296]
[1764656293745,4.02641056,127.21,127.2,33.45868578]
[1764656294372,4.68641056,127.21,127.2,29.44513296]
[1764656294958,4.68641056,127.21,127.2,33.45868578]
[1764656297978,4.02641056,127.21,127.2,33.45868578]
[1764656299270,4.68641056,127.21,127.2,25.33158014]
[1764656312397,4.68641056,127.21,127.2,17.46994492]
[1764656313110,4.02641056,127.21,127.2,27.8984479]
[1764656313275,4.02641056,127.21,127.2,45.36839282]
[1764656326194,4.74641056,127.21,127.2,45.36839282]
[1764656326690,4.02641056,127.21,127.2,45.36839282]
[1764656328666,7.77343754,127.26,127.23,25.11880892]
[1764656328865,12.34046451,127.32,127.28,8.80994492]
[1764656329073,12.34046451,127.32,127.31,11.37681268]
[1764656329375,11.62046451,127.32,127.31,17.46994492]
[1764656329570,14.18733227,127.32,127.31,8.66]
[1764656329880,14.90733227,127.32,127.31,8.66]
[1764656330393,12.34046451,127.32,127.31,8.66]
[1764656333983,12.34046451,127.32,127.31,16.51484251]
[1764656335304,12.34046451,127.32,127.31,19.08171027]
[1764656336305,12.34046451,127.32,127.31,16.51484251]
[1764656336606,12.34046451,127.32,127.31,8.66]
[1764656337798,12.34046451,127.32,127.31,16.51484251]
[1764656338408,12.34046451,127.32,127.31,27.89165519]
[1764656339097,12.34046451,127.32,127.31,40.2321197]
[1764656341804,12.34046451,127.32,127.31,25.32478743]
[1764656342606,12.34046451,127.32,127.31,27.89165519]
[1764656352809,11.62046451,127.32,127.31,27.89165519]
[1764656353117,11.62046451,127.32,127.31,40.2321197]
[1764656353722,11.62046451,127.32,127.31,27.89165519]
[1764656360002,11.62046451,127.32,127.31,25.32478743]
[1764656360203,11.62046451,127.32,127.31,27.89165519]
[1764656363824,12.33046451,127.32,127.31,27.89165519]
[1764656364925,11.62046451,127.32,127.31,27.89165519]
[1764656365602,12.33046451,127.32,127.31,27.89165519]
[1764656366722,12.33046451,127.32,127.31,25.32478743]
[1764656367026,12.33046451,127.32,127.31,27.89165519]
[1764656368830,12.33046451,127.32,127.31,25.32478743]
[1764656369004,12.33046451,127.32,127.31,27.89165519]
[1764656370232,12.33046451,127.32,127.31,8.66]
[1764656370520,12.33046451,127.32,127.3,8.66]
[1764656370825,0.71,127.31,127.3,8.66]
[1764656372603,0.71,127.31,127.3,16.51545954]
[1764656372804,0.71,127.31,127.3,8.66]
[1764656376110,12.56913188,127.31,127.26,4.00428937]
[1764656376406,4.00428937,127.3,127.27,8.66]
[1764656376609,4.00428937,127.29,127.25,7.85830705]
[1764656376818,4.00428937,127.28,127.26,8.66]
[1764656377022,4.71428937,127.28,127.26,8.66]
[1764656377223,0.71,127.27,127.26,8.66]
[1764656378021,0.71,127.27,127.25,7.85830705]
[1764656378227,0.71,127.27,127.26,8.66]
[1764656381113,4.71428937,127.27,127.26,8.66]
[1764656383418,12.57202471,127.27,127.23,7.85977179]
[1764656383618,4.70428937,127.26,127.25,8.66]
[1764656384328,4.70428937,127.26,127.23,8.66]
[1764656384527,0.7,127.25,127.23,8.66]
[1764656388436,4.70428937,127.25,127.23,8.66]
[1764656388642,0.7,127.24,127.23,8.66]
[1764656388818,4.70428937,127.24,127.23,8.66]
[1764656390846,12.56345315,127.24,127.23,8.66]
[1764656391842,12.56345315,127.24,127.22,8.66]
[1764656392136,0.7,127.23,127.22,8.66]
[1764656394022,0.7,127.25,127.22,20.52466446]
[1764656394223,0.7,127.24,127.23,4.00428937]
[1764656395347,0.7,127.24,127.22,20.52466446]
[1764656396367,7.857028,127.28,127.23,12.81423429]
[1764656396655,0.7,127.26,127.24,12.66428937]
[1764656398223,0.7,127.26,127.24,8.66]
[1764656398928,0.7,127.26,127.24,16.51912941]
[1764656399240,0.7,127.26,127.25,8.66]
[1764656400153,4.70428937,127.26,127.25,8.66]
[1764656400545,12.56221802,127.26,127.25,8.66]
[1764656400751,12.56221802,127.26,127.23,16.5196349]
[1764656400950,4.70428937,127.25,127.23,16.5196349]
[1764656401557,0.7,127.24,127.23,16.5196349]
[1764656401963,4.70428937,127.24,127.23,8.66]
[1764656402272,4.70428937,127.24,127.21,16.52058886]
[1764656402445,4.70428937,127.23,127.21,16.52058886]
[1764656402758,0.7,127.23,127.21,16.52058886]
[1764656402952,0.7,127.22,127.21,16.52058886]
[1764656403134,0.7,127.23,127.21,16.52058886]
[1764656404256,0.7,127.26,127.22,12.81423429]
[1764656404456,0.7,127.26,127.23,12.66428937]
[1764656406360,0.7,127.26,127.24,7.85916378]
[1764656406559,0.7,127.26,127.25,8.66]
[1764656409954,0.7,127.28,127.25,20.52283553]
[1764656410126,35.94632365,127.31,127.25,20.52283553]
[1764656410127,0.7,127.27,127.25,20.52283553]
[1764656411261,0.7,127.27,127.25,16.51854616]
[1764656413161,0.7,127.27,127.25,8.66]
[1764656414455,0.7,127.27,127.25,16.51847524]
[1764656416335,0.7,127.28,127.25,20.52276461]
[1764656416565,0.7,127.3,127.28,8.80994492]
[1764656416858,15.62475388,127.32,127.29,8.66]
[1764656416859,4.00428937,127.31,127.29,8.66]
[1764656417165,23.47952382,127.32,127.29,8.66]
[1764656417374,0.7,127.31,127.29,8.66]
[1764656417544,4.70428937,127.31,127.29,8.66]
[1764656418070,0.7,127.3,127.29,8.66]
[1764656426159,0.7,127.3,127.27,29.33154551]
[1764656430873,0.7,127.3,127.27,7.85731122]
[1764656431078,0.7,127.3,127.27,16.51731122]
[1764656432164,4.70428937,127.3,127.27,16.51731122]
[1764656432363,3.26373852,127.3,127.27,16.51731122]
[1764656432559,3.26373852,127.3,127.25,47.32831592]
[1764656432560,2.56373852,127.28,127.25,8.66]
[1764656432973,0.7,127.27,127.25,8.66]
[1764656434077,0.7,127.27,127.25,16.5181812]
[1764656438887,0.7,127.27,127.25,36.16454662]
[1764656439071,7.85582212,127.3,127.25,36.16454662]
[1764656439270,0.66,127.3,127.28,2.56373852]
[1764656439571,0.66,127.3,127.28,8.66]
[1764656440080,0.66,127.3,127.28,19.08016868]
[1764656440714,0.66,127.3,127.28,16.51643016]
[1764656440896,0.66,127.3,127.28,19.08016868]
[1764656441767,0.66,127.3,127.28,16.51643016]
[1764656444391,0.66,127.3,127.28,7.85643016]
[1764656444581,0.66,127.3,127.28,16.51643016]
[1764656451974,0.66,127.3,127.28,8.66]
[1764656452604,3.22373852,127.3,127.28,8.66]
[1764656453101,0.67,127.29,127.28,8.66]
[1764656453706,3.23373852,127.29,127.26,8.66]
[1764656453906,2.56373852,127.28,127.26,8.66]
[1764656454081,3.23373852,127.28,127.26,8.66]
[1764656454280,0.67,127.27,127.26,8.66]
[1764656459509,0.67,127.27,127.25,7.85802309]
[1764656459716,0.67,127.27,127.26,8.66]
[1764656463013,3.23373852,127.27,127.26,8.66]
[1764656463595,0.67,127.27,127.26,8.66]
[1764656464417,3.23373852,127.27,127.26,8.66]
[1764656464918,0.67,127.27,127.26,8.66]
[1764656471728,16.308864,127.31,127.26,25.32787357]
[1764656472029,0.72,127.29,127.26,25.32787357]
[1764656474629,2.56373852,127.28,127.26,8.66]
[1764656474803,2.56373852,127.27,127.21,7.86073353]
[1764656475009,2.56373852,127.23,127.22,24.968864]
[1764656475333,2.56373852,127.23,127.2,16.67128571]
[1764656475498,2.56373852,127.21,127.18,10.25495408]
[1764656475702,0.72,127.22,127.13,22.42791006]
[1764656475703,2.56373852,127.19,127.13,22.42791006]
[1764656475923,10.25495408,127.2,127.14,16.52534528]
[1764656475924,2.56373852,127.16,127.14,16.52534528]
[1764656476404,3.28373852,127.16,127.14,16.52534528]
[1764656479431,0.72,127.16,127.14,16.52534528]
[1764656481510,3.28373852,127.16,127.14,16.52534528]
[1764656482037,0.72,127.15,127.14,25.3352902]
[1764656482340,0.72,127.15,127.14,16.52534528]
[1764656485635,3.28373852,127.15,127.14,8.66]
[1764656485826,3.28373852,127.15,127.13,0.2]
[1764656486016,7.86378882,127.17,127.13,0.2]
[1764656486017,3.28373852,127.14,127.13,0.2]
[1764656487641,0.72,127.14,127.13,8.06596397]
[1764656493450,0.71,127.18,127.14,8.80994492]
[1764656493647,4.72536023,127.18,127.15,8.66]
[1764656494136,0.71,127.17,127.15,8.66]
[1764656495151,0.71,127.17,127.15,16.52455995]
[1764656499754,0.21,127.17,127.15,16.52455995]
[1764656500533,7.86246396,127.19,127.16,0.5]
[1764656500937,7.86246396,127.19,127.15,20.53992018]
[1764656501233,11.87782419,127.19,127.15,20.53992018]
[1764656501835,0.66,127.18,127.15,20.53992018]
[1764656502157,0.66,127.18,127.14,16.52524774]
[1764656502158,4.01536023,127.16,127.14,16.52524774]
[1764656502530,0.66,127.15,127.14,16.52524774]
[1764656502830,0.66,127.16,127.14,16.52524774]
[1764656503031,0.66,127.15,127.14,16.52524774]
[1764656506156,4.01536023,127.17,127.14,16.52524774]
[1764656506363,0.66,127.16,127.14,16.52524774]
[1764656506858,4.67536023,127.16,127.14,16.52524774]
[1764656509566,4.01536023,127.16,127.14,16.52524774]
[1764656509751,0.66,127.15,127.14,16.52524774]
[1764656511367,4.67536023,127.15,127.13,0.2]
[1764656511574,4.01536023,127.14,127.13,0.2]
[1764656511775,4.67536023,127.14,127.13,8.06596397]
[1764656514071,4.67536023,127.14,127.13,0.2]
[1764656514372,12.54070551,127.14,127.13,0.2]
[1764656523959,25.21606574,127.14,127.13,0.2]
[1764656524159,41.52492974,127.14,127.13,0.2]
[1764656524366,64.34224525,127.14,127.12,0.2]
[1764656524550,4.67536023,127.13,127.12,0.2]
[1764656525874,12.5413242,127.13,127.12,0.2]
[1764656530957,20.32422423,127.11,127.1,0.2]
[1764656531157,28.98422423,127.11,127.1,0.2]
[1764656531377,29.64422423,127.11,127.1,0.2]
[1764656532487,37.51142586,127.11,127.1,0.2]
[1764656540097,4.01536023,127.06,127.05,0.7]
[1764656540281,4.01536023,127.07,127.05,0.7]
[1764656540815,4.68536023,127.06,127.03,7.87186694]
[1764656541094,4.01536023,127.04,127.02,0.7]
[1764656541389,4.01536023,127.03,127.02,0.7]
[1764656541591,4.01536023,127.03,127.01,0.9]
[1764656541789,4.01536023,127.02,127.01,0.9]
[1764656542203,4.01536023,127.02,127.01,0.2]
[1764656542391,4.68536023,127.02,127.01,0.2]
[1764656542902,8.70072046,127.02,127.01,0.2]
[1764656543477,16.5734964,127.02,127.01,0.2]
[1764656548796,11.88813617,127.02,127.01,0.2]
[1764656549191,12.55813617,127.02,127.01,0.2]
[1764656549391,11.88813617,127.02,127.01,0.2]
[1764656549596,7.87238245,127.03,127.01,0.2]
[1764656549801,4.01536023,127.02,127.01,0.2]
[1764656550182,8.54158231,127.04,127.01,0.2]
[1764656550388,4.01536023,127.04,127.01,8.77312854]
[1764656550594,4.01536023,127.04,127.02,0.7]
[1764656552511,8.69072046,127.03,127.01,0.2]
[1764656552696,8.69072046,127.03,126.99,0.2]
[1764656552697,16.71072046,127.02,126.99,0.2]
[1764656552889,20.32422423,127.0,126.99,0.2]
[1764656553290,20.98422423,127.0,126.99,0.2]
[1764656554016,20.98422423,127.0,126.95,0.2]
[1764656554200,4.01536023,126.96,126.95,0.2]
[1764656554511,12.89426345,126.96,126.95,0.2]
[1764656554813,13.55426345,126.96,126.95,0.2]
[1764656555310,21.43075998,126.96,126.95,0.2]
[1764656556813,11.11534922,126.96,126.95,0.2]
[1764656558922,7.87649653,126.96,126.95,0.2]
[1764656559119,10.45534922,126.96,126.95,0.2]
[1764656559720,8.53597929,126.97,126.95,0.2]
[1764656559906,2.57885269,126.96,126.95,0.2]
[1764656560725,10.45534922,126.96,126.95,0.2]
[1764656562432,10.45534922,126.96,126.95,0.9]
[1764656562433,2.57885269,126.96,126.95,0.9]
[1764656564001,2.57885269,126.98,126.95,8.77690649]
[1764656564202,2.57885269,126.98,126.96,0.7]
[1764656565714,2.57885269,126.97,126.95,0.2]
[1764656565920,2.57885269,126.96,126.95,0.2]
[1764656566120,2.57885269,126.96,126.95,8.9]
[1764656569729,2.57885269,126.96,126.95,0.2]
[1764656569930,2.57885269,126.96,126.95,8.9]
[1764656570229,2.57885269,126.96,126.95,0.2]
[1764656570410,2.57885269,126.96,126.95,8.9]
[1764656570931,2.57885269,126.96,126.95,0.2]
[1764656571137,2.57885269,126.96,126.95,8.9]
[1764656572138,2.57885269,126.96,126.95,0.2]
[1764656572437,2.57885269,126.96,126.95,8.9]
[1764656572940,2.57885269,126.96,126.95,0.2]
[1764656573238,2.57885269,126.96,126.95,8.9]
[1764656577942,10.45534922,126.96,126.95,8.9]
[1764656578522,2.57885269,126.96,126.95,8.9]
[1764656579844,0.71,126.97,126.95,8.9]
[1764656580043,2.57885269,126.97,126.96,0.7]
[1764656580218,2.57885269,126.97,126.95,9.6]
[1764656580645,3.28885269,126.96,126.95,8.9]
[1764656580830,2.57885269,126.96,126.95,8.9]
[1764656584630,2.57885269,126.96,126.95,9.6]
[1764656584831,16.308864,127.0,126.95,9.6]
[1764656584832,2.57885269,126.98,126.95,9.6]
[1764656585046,2.57885269,126.98,126.96,0.7]
[1764656585434,2.57885269,126.97,126.96,0.7]
[1764656585822,2.57885269,126.97,126.95,17.47684023]
[1764656586654,2.57885269,126.97,126.96,0.7]
[1764656587148,2.57885269,126.97,126.96,9.4]
[1764656589752,2.57885269,126.97,126.96,8.7]
[1764656590124,3.28885269,126.97,126.96,8.7]
[1764656591252,41.35798145,127.04,126.96,9.4]
[1764656591459,2.57885269,127.0,126.97,8.80994492]
[1764656591626,2.57885269,126.98,126.95,0.9]
[1764656591947,7.87339579,127.01,126.96,8.7]
[1764656592151,2.57885269,126.97,126.96,8.7]
[1764656592529,3.27885269,126.97,126.96,8.7]
[1764656592753,3.27885269,126.97,126.95,9.00994492]
[1764656592936,3.27885269,126.97,126.96,8.7]
[1764656593933,2.57885269,127.0,126.97,8.80994492]
[1764656594137,16.308864,127.0,126.97,8.80994492]
[1764656594540,0.7,126.99,126.97,8.80994492]
[1764656595149,17.008864,127.0,126.98,8.7]
[1764656596451,0.7,126.99,126.98,8.7]
[1764656596755,0.7,126.99,126.98,16.57525594]
[1764656597053,18.88771669,127.0,126.98,16.57525594]
[1764656597259,0.7,126.99,126.98,16.57525594]
[1764656599541,3.27885269,126.99,126.98,8.7]
[1764656603057,0.7,126.99,126.98,8.7]
[1764656604660,16.308864,127.0,126.98,16.57525594]
[1764656604955,19.58771669,127.0,126.98,16.57525594]
[1764656605556,19.58771669,127.0,126.98,25.38520086]
[1764656605557,0.7,126.99,126.98,25.38520086]
[1764656607536,2.57885269,127.01,126.98,26.08520086]
[1764656607846,3.27885269,127.01,126.98,26.08520086]
[1764656608056,0.7,127.0,126.98,25.38520086]
[1764656608348,0.7,127.02,126.99,8.80994492]
[1764656608544,0.7,127.02,127.0,8.68]
[1764656608949,3.27885269,127.02,127.0,8.68]
[1764656609459,3.27885269,127.01,127.0,8.68]
[1764656609637,0.7,127.01,127.0,8.68]
[1764656610542,0.7,127.01,127.0,16.55401574]
[1764656611043,0.7,127.01,127.0,8.68]
[1764656611766,0.7,127.01,127.0,16.55401574]
[1764656612259,24.18088404,127.04,127.0,17.22401574]
[1764656612260,16.308864,127.04,127.0,17.22401574]
[1764656612464,0.7,127.07,127.03,11.38879761]
[1764656612639,0.7,127.07,127.04,8.68]
[1764656613061,0.7,127.07,127.04,9.35]
[1764656613387,0.7,127.07,127.04,11.92885269]
[1764656613554,0.7,127.07,127.05,8.80994492]
[1764656613742,19.58771669,127.08,127.06,16.55026836]
[1764656614256,17.008864,127.08,127.06,16.55026836]
[1764656614458,0.7,127.08,127.06,16.55026836]
[1764656617572,4.71936359,127.08,127.06,8.68]
[1764656618971,4.71936359,127.08,127.07,8.68]
[1764656627572,0.7,127.08,127.07,8.68]
[1764656627782,4.01936359,127.09,127.07,8.68]
[1764656627783,4.01936359,127.11,127.08,8.80994492]
[1764656627965,4.79936359,127.12,127.09,8.68]
[1764656628292,0.1,127.12,127.1,8.80994492]
[1764656628576,0.1,127.12,127.11,16.54720163]
[1764656628958,0.78,127.12,127.11,16.54720163]
[1764656629967,0.1,127.12,127.11,16.54720163]
[1764656630273,0.78,127.12,127.11,16.54720163]
[1764656630650,0.1,127.12,127.11,16.54720163]
[1764656631871,0.78,127.12,127.11,16.54720163]
[1764656632778,12.6659839,127.12,127.11,8.68]
[1764656637576,12.6659839,127.12,127.08,7.86879812]
[1764656637778,4.69936359,127.11,127.09,8.68]
[1764656637982,4.69936359,127.11,127.1,8.68]
[1764656638290,4.01936359,127.11,127.1,8.68]
[1764656638677,4.01936359,127.11,127.08,16.67874304]
[1764656638876,4.01936359,127.11,127.09,8.68]
[1764656638877,0.68,127.1,127.09,8.68]
[1764656639579,0.68,127.1,127.08,16.67874304]
[1764656639962,0.68,127.1,127.09,8.68]
[1764656640162,0.68,127.1,127.08,16.67874304]
[1764656640474,4.01936359,127.11,127.09,8.68]
[1764656640662,0.1,127.12,127.1,9.50994492]
[1764656640862,0.1,127.12,127.11,12.82930851]
[1764656641060,0.1,127.12,127.11,13.52930851]
[1764656641455,1e-08,127.12,127.11,13.52930851]
[1764656641773,1e-08,127.12,127.11,21.39651014]
[1764656642155,4.69936359,127.21,127.12,8.80994492]
[1764656642359,4.69936359,127.21,127.16,4.01936359]
[1764656642595,20.32822759,127.21,127.17,8.68]
[1764656642758,0.68,127.2,127.17,8.68]
[1764656643486,0.68,127.2,127.17,16.54303733]
[1764656644582,4.69936359,127.2,127.17,16.54303733]
[1764656645086,4.69936359,127.19,127.17,16.54303733]
[1764656645689,0.68,127.19,127.17,16.54303733]
[1764656645983,0.68,127.18,127.17,16.54303733]
[1764656646983,0.68,127.18,127.15,23.68009162]
[1764656647182,4.69936359,127.18,127.16,16.54410821]
[1764656647987,0.68,127.18,127.16,16.54410821]
[1764656648866,4.69936359,127.19,127.16,16.54410821]
[1764656652066,0.66,127.18,127.16,16.54410821]
[1764656653494,4.67936359,127.19,127.16,16.54410821]
[1764656653996,0.66,127.18,127.16,16.54410821]
[1764656654389,4.67936359,127.19,127.16,16.54410821]
[1764656654597,4.01936359,127.19,127.16,16.54410821]
[1764656654890,0.66,127.18,127.16,16.54410821]
[1764656657185,4.67936359,127.18,127.16,16.54410821]
[1764656657690,4.67936359,127.17,127.15,7.86465985]
[1764656657995,4.67936359,127.17,127.16,8.66]
[1764656659299,4.67936359,127.17,127.16,16.52410821]
[1764656659503,0.66,127.17,127.16,16.52410821]
[1764656659702,4.67936359,127.17,127.16,16.52410821]
[1764656661303,4.01936359,127.17,127.16,16.52410821]
[1764656661701,4.67936359,127.18,127.16,16.52410821]
[1764656665105,4.01936359,127.18,127.16,16.52410821]
[1764656665298,4.67936359,127.18,127.16,16.52410821]
[1764656674508,3.22864195,127.18,127.16,16.52410821]
[1764656675700,3.28864195,127.17,127.14,8.80994492]
[1764656676008,2.56864195,127.16,127.15,8.66]
[1764656676209,3.28864195,127.16,127.15,8.66]
[1764656676924,3.28864195,127.16,127.12,7.86658275]
[1764656677113,2.56864195,127.14,127.13,8.66]
[1764656677712,2.56864195,127.14,127.13,16.52596397]
[1764656678027,3.28864195,127.15,127.13,16.52596397]
[1764656682529,2.56864195,127.14,127.13,16.52596397]
[1764656683525,3.27864195,127.14,127.13,16.52596397]
[1764656683830,2.56864195,127.14,127.13,16.52596397]
[1764656685130,3.27864195,127.14,127.11,8.54702677]
[1764656685325,3.27864195,127.14,127.13,8.66]
[1764656686536,0.71,127.17,127.14,8.80994492]
[1764656686710,10.43146383,127.19,127.15,8.66]
[1764656686902,0.71,127.17,127.15,8.66]
[1764656687741,3.27864195,127.17,127.15,16.52418533]
[1764656690229,2.56864195,127.16,127.15,16.52418533]
[1764656690543,2.56864195,127.16,127.15,25.33413025]
[1764656692334,2.56864195,127.16,127.15,16.67413025]
[1764656692541,2.56864195,127.16,127.15,25.33413025]
[1764656692843,2.56864195,127.17,127.15,26.01413025]
[1764656694335,3.27864195,127.17,127.15,26.01413025]
[1764656694932,2.56864195,127.16,127.15,16.67413025]
[1764656695133,2.56864195,127.16,127.15,25.33413025]
[1764656698438,2.56864195,127.16,127.15,16.67413025]
[1764656698733,2.56864195,127.16,127.15,25.33413025]
[1764656700114,3.27864195,127.16,127.11,19.66707001]
[1764656700440,2.56864195,127.13,127.12,17.46994492]
[1764656701229,2.56864195,127.13,127.12,25.33652767]
[1764656701543,3.27864195,127.13,127.11,7.86699729]
[1764656701748,3.27864195,127.12,127.11,7.86699729]
[1764656701925,3.27864195,127.12,127.11,16.52699729]
[1764656702314,2.56864195,127.12,127.11,16.52699729]
[1764656702614,3.27864195,127.12,127.11,7.86699729]
[1764656702830,3.27864195,127.12,127.11,16.52699729]
[1764656703721,3.27864195,127.12,127.11,8.66]
[1764656706125,3.27864195,127.12,127.1,16.67748208]
[1764656706328,2.56864195,127.12,127.11,8.66]
[1764656706942,3.27864195,127.12,127.11,8.66]
[1764656708848,2.56864195,127.12,127.11,8.66]
[1764656710843,2.56864195,127.13,127.12,8.80994492]
[1764656711034,2.56864195,127.15,127.12,9.48994492]
[1764656711239,2.56864195,127.15,127.14,8.80994492]
[1764656711944,3.27864195,127.16,127.15,7.8647267]
[1764656712149,2.56864195,127.17,127.15,16.5247267]
[1764656712337,3.27864195,127.17,127.15,16.5247267]
[1764656712645,2.56864195,127.17,127.15,16.5247267]
[1764656712831,3.27864195,127.17,127.15,16.5247267]
[1764656713146,2.56864195,127.16,127.15,25.33467162]
[1764656713643,3.27864195,127.16,127.15,25.33467162]
[1764656714146,2.56864195,127.16,127.15,25.33467162]
[1764656717244,2.56864195,127.16,127.15,16.67467162]
[1764656717458,3.27864195,127.16,127.15,25.33467162]
[1764656719356,2.56864195,127.16,127.15,25.33467162]
[1764656720350,3.27864195,127.16,127.15,25.33467162]
[1764656721148,2.56864195,127.16,127.15,25.33467162]
[1764656723962,3.27864195,127.17,127.15,25.33467162]